bitfinex/quotes_SOLUSD_20241209
["timestamp","ask_amount","ask_price","bid_price","bid_amount"]
[1733758466271,22.66672618,226.77,226.7,22.66672618]
[1733758466470,22.66672618,226.79,226.7,22.66672618]
[1733758467054,22.66672618,226.77,226.68,35.03242618]
[1733758467263,22.66672618,226.73,226.68,12.3657]
[1733758467451,22.66672618,226.71,226.62,35.75142618]
[1733758467650,19.8413,226.8,226.62,13.0847]
[1733758467651,22.66672618,226.69,226.62,13.0847]
[1733758467864,22.66672618,226.73,226.64,22.66672618]
[1733758468073,22.66672618,226.73,226.62,13.0847]
[1733758468074,22.66672618,226.73,226.66,22.66672618]
[1733758468277,22.66672618,226.75,226.66,22.66672618]
[1733758468478,22.66672618,226.77,226.68,22.66672618]
[1733758468657,22.66672618,226.77,226.67,0.66159801]
[1733758468658,22.66672618,226.77,226.7,22.66672618]
[1733758468857,22.66672618,226.79,226.7,22.66672618]
[1733758469077,22.66672618,226.75,226.66,22.66672618]
[1733758469286,22.66672618,226.73,226.66,22.66672618]
[1733758469982,22.66672618,226.77,226.68,22.66672618]
[1733758470292,22.66672618,226.77,226.69,23.776884]
[1733758470794,22.66672618,226.77,226.7,22.66672618]
[1733758470952,22.66672618,226.77,226.69,23.776884]
[1733758471153,22.66672618,226.77,226.66,22.66672618]
[1733758471372,22.66672618,226.75,226.66,22.66672618]
[1733758472483,22.66672618,226.77,226.68,22.66672618]
[1733758472982,22.66672618,226.82,226.65,0.66150757]
[1733758472983,22.66672618,226.82,226.74,22.66672618]
[1733758473378,22.66672618,226.85,226.76,22.79221618]
[1733758473578,22.66672618,226.85,226.78,22.66672618]
[1733758474568,22.66672618,226.81,226.76,13.0376]
[1733758475492,22.66672618,226.83,226.76,35.70432618]
[1733758475695,22.66672618,226.81,226.76,13.0376]
[1733758475870,22.66672618,226.83,226.76,13.0376]
[1733758476483,22.66672618,226.81,226.74,8.3208]
[1733758476788,22.66672618,226.81,226.73,22.66672618]
[1733758477794,22.66672618,226.79,226.71,22.66672618]
[1733758477963,22.66672618,226.77,226.7,12.773]
[1733758479666,22.66672618,226.79,226.71,46.44361018]
[1733758479883,22.66672618,226.77,226.71,23.776884]
[1733758480081,22.66672618,226.77,226.7,12.773]
[1733758480392,22.66672618,226.79,226.71,46.69459018]
[1733758481090,22.66672618,226.81,226.73,22.66672618]
[1733758481593,22.66672618,226.77,226.71,23.776884]
[1733758482300,22.66672618,226.79,226.71,46.44361018]
[1733758482595,6.613,226.83,226.73,22.66672618]
[1733758482596,22.66672618,226.81,226.73,22.66672618]
[1733758483005,22.66672618,226.79,226.71,46.44361018]
[1733758483503,22.66672618,226.83,226.76,0.12549]
[1733758483827,22.66672618,226.87,226.8,23.776884]
[1733758484034,22.66672618,226.89,226.82,23.776884]
[1733758484404,34.86925665,226.91,226.83,22.66672618]
[1733758484706,34.86925665,226.91,226.84,12.8684]
[1733758485711,34.86925665,226.91,226.85,22.66672618]
[1733758486013,12.20253047,226.91,226.85,22.66672618]
[1733758486186,12.20253047,226.91,226.86,24.027864]
[1733758486795,12.20253047,226.91,226.87,22.66672618]
[1733758487027,12.20253047,226.91,226.85,23.776884]
[1733758487193,22.66672618,226.87,226.84,12.8684]
[1733758487417,22.66672618,226.86,226.81,7.7318]
[1733758487617,22.66672618,226.88,226.81,30.39852618]
[1733758487915,22.66672618,226.86,226.81,7.7318]
[1733758488618,22.66672618,226.9,226.82,0.25098]
[1733758488787,12.20253047,226.91,226.85,22.66672618]
[1733758488995,12.20253047,226.91,226.86,23.776884]
[1733758490325,22.66672618,226.96,226.89,22.66672618]
[1733758491140,22.66672618,226.96,226.9,23.776884]
[1733758491435,22.66672618,226.96,226.89,22.66672618]
[1733758491637,22.66672618,226.96,226.89,0.12549]
[1733758491805,22.66672618,226.94,226.86,23.902374]
[1733758492007,22.66672618,226.96,226.88,0.12549]
[1733758492206,22.66672618,226.98,226.92,0.12549]
[1733758492406,0.5071003,226.99,226.94,23.902374]
[1733758492641,0.5071003,226.99,226.96,0.12549]
[1733758492834,0.5071003,226.99,226.93,22.66672618]
[1733758493007,22.66672618,226.96,226.91,12.4771]
[1733758493210,0.5071003,226.99,226.86,0.66073914]
[1733758493211,22.66672618,226.94,226.86,23.776884]
[1733758493522,22.66672618,226.92,226.85,35.23542618]
[1733758494116,22.66672618,226.92,226.86,0.12549]
[1733758495340,14.11743836,226.94,226.86,14.24292836]
[1733758496431,14.11743836,226.92,226.86,0.12549]
[1733758497239,14.11743836,226.88,226.81,7.7318]
[1733758497410,14.11743836,226.94,226.86,14.11743836]
[1733758497833,6.6092,226.96,226.87,0.12549]
[1733758498043,20.72663836,226.96,226.89,0.12549]
[1733758498416,20.72663836,226.96,226.89,23.902374]
[1733758498621,14.11743836,226.92,226.85,0.12549]
[1733758498820,14.11743836,226.92,226.85,23.902374]
[1733758499131,14.11743836,226.94,226.87,23.902374]
[1733758499445,0.5071003,226.99,226.85,23.902374]
[1733758499446,14.11743836,226.92,226.85,23.902374]
[1733758499647,19.8255,226.98,226.85,23.902374]
[1733758499648,14.11743836,226.9,226.85,0.25098]
[1733758499849,14.11743836,226.9,226.85,0.12549]
[1733758500148,14.11743836,226.9,226.83,0.12549]
[1733758500650,14.11743836,226.86,226.78,14.11743836]
[1733758500842,14.11743836,226.93,226.76,14.11743836]
[1733758500843,14.11743836,226.84,226.76,14.11743836]
[1733758501041,14.11743836,226.86,226.78,14.11743836]
[1733758501239,22.60524864,226.86,226.78,22.60524864]
[1733758501444,6.6102,226.92,226.84,22.60524864]
[1733758501644,22.60524864,226.91,226.84,22.60524864]
[1733758501821,6.6102,226.92,226.75,30.31844864]
[1733758501822,22.60524864,226.85,226.75,30.31844864]
[1733758502020,6.6102,226.92,226.75,30.31844864]
[1733758502021,22.60524864,226.83,226.75,30.31844864]
[1733758502625,22.60524864,226.81,226.75,7.7132]
[1733758503051,32.60524864,226.93,226.76,0.12549]
[1733758503052,22.60524864,226.83,226.76,0.12549]
[1733758503236,22.60524864,226.87,226.8,0.12549]
[1733758503567,22.60524864,226.81,226.75,7.7132]
[1733758503926,22.60524864,226.77,226.74,12.621]
[1733758504327,22.60524864,226.75,226.68,20.1467]
[1733758504579,22.60524864,226.73,226.68,20.1467]
[1733758504720,22.60524864,226.71,226.68,20.1467]
[1733758504921,22.60524864,226.71,226.68,12.621]
[1733758505550,22.60524864,226.69,226.61,12.5332]
[1733758505746,6.6166,226.7,226.56,12.0859]
[1733758505747,22.60524864,226.63,226.56,12.0859]
[1733758505964,22.60524864,226.58,226.5,6.84417199]
[1733758506266,22.60524864,226.58,226.49,14.35032409]
[1733758506267,22.60524864,226.58,226.49,29.44942063]
[1733758506469,22.60524864,226.58,226.49,23.26730498]
[1733758506679,22.60524864,226.58,226.51,22.60524864]
[1733758506844,20.0,226.66,226.51,22.60524864]
[1733758506845,22.60524864,226.6,226.51,22.60524864]
[1733758507045,22.60524864,226.58,226.49,23.26730498]
[1733758507251,22.60524864,226.56,226.49,22.60524864]
[1733758507476,22.60524864,226.58,226.49,23.26739328]
[1733758508061,22.60524864,226.58,226.5,0.12549]
[1733758508677,22.60524864,226.58,226.49,23.26739328]
[1733758508973,22.60524864,226.56,226.48,12.0859]
[1733758509175,20.0,226.59,226.51,22.60524864]
[1733758509385,22.60524864,226.6,226.52,0.12549]
[1733758509544,22.60524864,226.6,226.54,0.12549]
[1733758509745,22.60524864,226.58,226.51,23.26724189]
[1733758509958,22.60524864,226.56,226.49,22.60524864]
[1733758510160,20.0,226.66,226.49,22.60524864]
[1733758510161,22.60524864,226.58,226.49,22.60524864]
[1733758510363,22.60524864,226.58,226.5,0.12549]
[1733758510852,22.60524864,226.54,226.48,12.0859]
[1733758511343,22.60524864,226.5,226.41,13.89833216]
[1733758511655,5.0,226.57,226.41,22.60524864]
[1733758511656,22.60524864,226.48,226.41,22.60524864]
[1733758512572,22.60524864,226.48,226.39,7.8393]
[1733758512573,22.60524864,226.48,226.39,30.44454864]
[1733758512963,22.60524864,226.48,226.42,0.12549]
[1733758513281,22.60524864,226.48,226.39,7.8393]
[1733758513482,6.6214,226.54,226.36,13.2362]
[1733758513483,22.60524864,226.41,226.36,13.2362]
[1733758513782,22.60524864,226.42,226.36,13.2362]
[1733758514803,22.60524864,226.44,226.36,13.2362]
[1733758515095,22.60524864,226.46,226.4,0.12549]
[1733758515264,22.60524864,226.48,226.42,23.776884]
[1733758515466,22.60524864,226.5,226.44,23.776884]
[1733758515799,22.60524864,226.54,226.47,46.63311264]
[1733758515952,22.60524864,226.57,226.5,0.12549]
[1733758516147,22.60524864,226.58,226.52,23.776884]
[1733758516352,12.21828186,226.62,226.57,22.60524864]
[1733758516590,12.21828186,226.62,226.57,159.60524864]
[1733758516748,12.21828186,226.62,226.58,22.60524864]
[1733758516953,12.21828186,226.62,226.56,22.60524864]
[1733758517167,34.8235305,226.62,226.54,22.60524864]
[1733758517687,22.60524864,226.6,226.53,22.60524864]
[1733758517853,22.60524864,226.6,226.49,12.504]
[1733758517854,22.60524864,226.59,226.51,22.60524864]
[1733758518060,22.60524864,226.57,226.51,22.60524864]
[1733758518394,22.60524864,226.55,226.49,12.504]
[1733758518554,22.60524864,226.56,226.49,35.10924864]
[1733758518992,22.60524864,226.56,226.49,12.504]
[1733758519165,22.60524864,226.54,226.49,12.504]
[1733758519375,22.60524864,226.52,226.44,22.60524864]
[1733758519870,22.60524864,226.5,226.43,12.983]
[1733758520059,22.60524864,226.48,226.43,12.983]
[1733758520258,22.60524864,226.49,226.43,12.983]
[1733758520896,22.60524864,226.53,226.46,22.60524864]
[1733758521388,22.60524864,226.51,226.43,12.983]
[1733758521592,22.60524864,226.49,226.43,12.983]
[1733758521780,22.60524864,226.47,226.43,12.983]
[1733758521951,22.60524864,226.47,226.4,8.0867]
[1733758522152,22.60524864,226.47,226.4,30.69194864]
[1733758522387,22.60524864,226.47,226.4,8.0867]
[1733758522584,29.22864864,226.47,226.4,8.0867]
[1733758523069,29.22864864,226.47,226.4,30.69194864]
[1733758523270,22.60524864,226.49,226.4,30.69194864]
[1733758524776,22.60524864,226.45,226.38,22.60524864]
[1733758524977,22.60524864,226.43,226.37,13.2225]
[1733758525408,34.22824864,226.49,226.32,30.15044864]
[1733758525409,22.60524864,226.41,226.32,30.15044864]
[1733758526612,22.60524864,226.37,226.32,7.5452]
[1733758526785,22.60524864,226.39,226.32,7.5452]
[1733758527107,22.60524864,226.38,226.32,7.5452]
[1733758527473,22.60524864,226.39,226.32,30.15044864]
[1733758527887,22.60524864,226.41,226.33,22.60524864]
[1733758528111,22.60524864,226.4,226.32,30.15044864]
[1733758528424,22.60524864,226.41,226.33,22.60524864]
[1733758528611,22.60524864,226.4,226.33,22.60524864]
[1733758528781,22.60524864,226.36,226.31,12.942]
[1733758529110,22.60524864,226.32,226.25,20.4872]
[1733758529293,22.60524864,226.3,226.25,20.4872]
[1733758529805,22.60524864,226.29,226.25,20.4872]
[1733758530107,22.60524864,226.27,226.21,0.5071003]
[1733758530286,20.0,226.33,226.21,0.5071003]
[1733758530488,22.60524864,226.27,226.21,0.5071003]
[1733758530677,22.60524864,226.25,226.21,0.5071003]
[1733758530883,22.60524864,226.26,226.21,0.5071003]
[1733758531103,22.60524864,226.22,226.21,0.5071003]
[1733758531477,22.60524864,226.22,226.02,17.7781]
[1733758531478,22.60524864,226.14,226.03,0.66325099]
[1733758531809,22.60524864,226.17,226.1,22.60524864]
[1733758531984,22.60524864,226.14,226.06,22.60524864]
[1733758532203,22.60524864,226.15,226.03,0.78886752]
[1733758532407,22.60524864,226.14,226.07,0.12549]
[1733758532619,22.60524864,226.14,226.06,22.60524864]
[1733758532620,22.60524864,226.15,226.08,22.60524864]
[1733758532920,22.60524864,226.15,226.06,23.26857834]
[1733758533122,22.60524864,226.13,226.02,13.44143071]
[1733758533330,22.60524864,226.14,226.07,22.60524864]
[1733758533631,22.60524864,226.12,226.04,22.60524864]
[1733758534015,22.60524864,226.1,226.02,35.38334864]
[1733758534325,22.60524864,226.12,226.05,22.60524864]
[1733758534629,22.60524864,226.13,226.05,22.60524864]
[1733758534839,22.60524864,226.13,226.03,0.66350954]
[1733758535012,22.60524864,226.13,226.05,22.60524864]
[1733758535191,22.60524864,226.15,226.07,22.60524864]
[1733758535611,22.60524864,226.12,226.05,22.60524864]
[1733758536233,22.60524864,226.15,226.08,22.60524864]
[1733758536405,6.6319,226.18,226.11,22.60524864]
[1733758536406,22.60524864,226.18,226.11,22.60524864]
[1733758536600,22.60524864,226.16,226.1,0.25098]
[1733758537007,22.60524864,226.15,226.06,0.66324264]
[1733758537242,22.60524864,226.12,226.04,22.60524864]
[1733758537411,22.60524864,226.14,226.06,22.60524864]
[1733758538125,13.2596,226.25,226.1,22.60524864]
[1733758538126,22.60524864,226.17,226.1,22.60524864]
[1733758538335,22.60524864,226.19,226.11,22.60524864]
[1733758538502,22.60524864,226.17,226.12,0.12549]
[1733758538705,22.60524864,226.2,226.13,22.60524864]
[1733758539011,22.60524864,226.23,226.16,22.60524864]
[1733758539211,22.60524864,226.22,226.16,0.12549]
[1733758539403,22.60524864,226.22,226.14,22.85622864]
[1733758539612,22.60524864,226.22,226.15,22.60524864]
[1733758539823,45.21049728,226.16,225.99,0.5071003]
[1733758540024,22.60524864,226.06,225.99,23.11234894]
[1733758540524,22.60524864,226.06,225.99,0.5071003]
[1733758540719,22.60524864,226.03,225.99,0.5071003]
[1733758540957,22.60524864,226.05,225.99,0.5071003]
[1733758541547,22.60524864,226.16,225.99,0.5071003]
[1733758541746,22.60524864,226.04,225.99,0.5071003]
[1733758542248,22.60524864,226.01,225.99,0.5071003]
[1733758542618,22.60524864,226.03,225.99,0.5071003]
[1733758542819,22.60524864,226.01,225.99,0.5071003]
[1733758544068,22.60524864,226.01,226.0,8.53024778]
[1733758545362,22.60524864,226.01,226.0,4.778e-05]
[1733758545864,6.6371,226.0,225.99,4.808e-05]
[1733758546072,22.60524864,226.0,225.99,4.808e-05]
[1733758546672,29.24234864,226.0,225.99,4.808e-05]
[1733758546966,20.0,225.97,225.88,13.039]
[1733758547195,22.60524864,225.9,225.88,13.039]
[1733758547374,22.60524864,225.91,225.88,13.039]
[1733758547572,22.60524864,225.93,225.88,13.039]
[1733758547868,22.60524864,225.91,225.88,13.039]
[1733758548549,22.60524864,225.94,225.88,13.039]
[1733758548753,22.60524864,225.96,225.89,0.25098]
[1733758548946,22.60524864,225.97,225.89,22.85622864]
[1733758549364,22.60524864,225.97,225.91,0.25098]
[1733758549943,22.60524864,225.99,225.93,23.902374]
[1733758550269,22.60524864,225.94,225.86,22.60524864]
[1733758550975,22.60524864,225.94,225.85,30.22554864]
[1733758551174,22.60524864,225.91,225.85,7.6203]
[1733758551382,22.60524864,225.95,225.87,22.60524864]
[1733758551558,22.60524864,225.95,225.88,0.91479696]
[1733758551880,22.60524864,225.96,225.9,0.25098]
[1733758552073,22.60524864,225.98,225.9,23.52001615]
[1733758552269,22.60524864,225.98,225.92,0.25098]
[1733758552454,22.60524864,226.02,225.96,23.902374]
[1733758552774,22.60524864,225.99,225.94,23.902374]
[1733758552978,22.60524864,225.99,225.95,0.12549]
[1733758553178,22.60524864,225.98,225.94,23.902374]
[1733758553747,22.60524864,225.95,225.93,12.3971]
[1733758553957,22.60524864,225.98,225.94,0.12549]
[1733758554159,22.60524864,225.97,225.93,12.3971]
[1733758554481,22.60524864,225.98,225.94,24.027864]
[1733758554715,22.60524864,226.05,225.93,12.3971]
[1733758554716,22.60524864,225.95,225.93,12.3971]
[1733758554877,22.60524864,225.98,225.94,23.902374]
[1733758555385,22.60524864,226.0,225.95,0.12549]
[1733758556382,22.60524864,225.99,225.95,0.12549]
[1733758556592,22.60524864,226.0,225.95,0.12549]
[1733758556888,22.60524864,226.04,226.01,23.902374]
[1733758557054,22.60524864,226.05,226.01,23.902374]
[1733758557255,22.60524864,226.09,226.02,0.12549]
[1733758557455,22.60524864,226.04,226.0,0.12549]
[1733758557654,6.6336,226.12,225.93,35.00234864]
[1733758557655,22.60524864,226.01,225.93,35.00234864]
[1733758557858,22.60524864,226.0,225.93,12.3971]
[1733758558281,22.60524864,226.05,225.81,12.3229]
[1733758558282,22.60524864,225.94,225.81,12.3229]
[1733758558510,22.60524864,225.95,225.89,22.60524864]
[1733758558687,22.60524864,225.95,225.87,22.60524864]
[1733758558875,22.60524864,225.92,225.81,12.3229]
[1733758559070,22.60524864,225.9,225.83,22.60524864]
[1733758559503,22.60524864,225.91,225.84,0.12549]
[1733758559798,22.60524864,225.9,225.83,22.60524864]
[1733758559969,22.60524864,225.91,225.83,22.60524864]
[1733758560799,22.60524864,225.95,225.88,0.12549]
[1733758560982,22.60524864,225.95,225.88,22.73073864]
[1733758561383,22.60524864,225.95,225.88,0.12549]
[1733758561580,22.60524864,225.95,225.89,0.12549]
[1733758561782,22.60524864,225.97,225.89,22.73073864]
[1733758562087,22.60524864,225.97,225.91,0.12549]
[1733758562291,22.60524864,225.95,225.91,0.12549]
[1733758562492,22.60524864,225.97,225.91,0.12549]
[1733758562699,22.60524864,226.05,225.97,0.25098]
[1733758563018,22.60524864,226.09,226.02,22.60524864]
[1733758563174,22.60524864,226.11,226.03,24.027864]
[1733758563501,22.60524864,226.11,226.05,0.12549]
[1733758563707,22.60524864,226.11,226.05,24.027864]
[1733758564073,22.60524864,226.07,226.05,0.12549]
[1733758564268,22.60524864,226.07,225.95,22.60524864]
[1733758564507,22.60524864,226.02,225.96,0.12549]
[1733758564677,22.60524864,226.06,225.99,22.60524864]
[1733758564875,27.00946696,226.19,226.05,22.60524864]
[1733758564876,22.60524864,226.12,226.05,22.60524864]
[1733758565087,22.60524864,226.12,226.06,0.25098]
[1733758565709,22.60524864,226.12,226.06,24.027864]
[1733758565900,22.60524864,226.12,226.05,0.12549]
[1733758566223,22.60524864,226.14,226.07,0.12549]
[1733758566515,22.60524864,226.16,226.09,0.25098]
[1733758566697,22.60524864,226.14,226.09,0.25098]
[1733758567020,22.60524864,226.14,226.11,0.25098]
[1733758567189,22.60524864,226.12,226.08,13.1801]
[1733758567397,22.60524864,226.1,226.02,12.7105]
[1733758567590,22.60524864,226.08,226.02,12.7105]
[1733758568308,22.60524864,226.06,226.02,12.7105]
[1733758568914,22.60524864,226.04,225.96,13.1676]
[1733758569085,22.60524864,226.02,225.96,13.1676]
[1733758569749,22.60524864,226.04,225.96,13.1676]
[1733758569916,6.6335,226.13,225.96,13.1676]
[1733758569917,22.60524864,226.08,226.01,22.60524864]
[1733758570216,22.60524864,226.08,226.02,0.12549]
[1733758570621,22.60524864,226.08,226.0,24.027864]
[1733758570914,22.60524864,226.04,225.96,22.60524864]
[1733758571092,22.60524864,226.04,225.97,23.902374]
[1733758571486,22.60524864,226.04,225.98,0.12549]
[1733758572315,22.60524864,226.02,225.98,0.12549]
[1733758572618,22.60524864,226.06,226.0,0.12549]
[1733758572820,22.60524864,226.13,226.05,0.12549]
[1733758573006,22.60524864,226.17,226.1,24.027864]
[1733758573382,31.3512156,226.19,226.12,0.25098]
[1733758573929,31.3512156,226.19,226.14,0.12549]
[1733758573930,8.74596696,226.19,226.14,0.12549]
[1733758574101,8.74596696,226.19,226.17,0.12549]
[1733758574495,31.3512156,226.19,226.1,23.776884]
[1733758574829,22.60524864,226.11,226.05,0.12549]
[1733758574984,22.60524864,226.06,225.98,22.60524864]
[1733758575423,22.60524864,226.1,226.04,0.12549]
[1733758575593,22.60524864,226.16,226.02,30.76814864]
[1733758575594,22.60524864,226.08,226.02,8.1629]
[1733758576025,22.60524864,226.06,226.02,8.1629]
[1733758576650,22.60524864,226.08,226.02,8.1629]
[1733758576937,22.60524864,226.06,225.98,22.60524864]
[1733758577089,22.60524864,226.04,225.96,35.40774864]
[1733758577424,6.6336,226.13,225.98,22.60524864]
[1733758577425,22.60524864,226.06,225.98,22.60524864]
[1733758577804,22.60524864,226.04,225.96,35.40774864]
[1733758578126,22.60524864,226.02,225.96,12.8025]
[1733758578539,22.60524864,226.04,225.96,35.40774864]
[1733758578826,22.60524864,226.04,225.94,7.8458]
[1733758578827,22.60524864,226.02,225.94,30.45104864]
[1733758579189,22.60524864,226.06,225.98,22.60524864]
[1733758579384,27.60524864,226.16,226.01,0.12549]
[1733758579385,22.60524864,226.08,226.01,0.12549]
[1733758579590,6.6331,226.14,226.03,0.12549]
[1733758579591,22.60524864,226.1,226.03,0.12549]
[1733758580027,22.60524864,226.08,226.01,23.902374]
[1733758580214,22.60524864,226.08,226.02,0.12549]
[1733758580793,22.60524864,226.08,226.01,0.25098]
[1733758582149,22.60524864,226.04,225.96,22.60524864]
[1733758582459,22.60524864,226.02,225.94,30.45104864]
[1733758582614,22.60524864,226.0,225.94,7.8458]
[1733758582817,22.60524864,226.04,225.96,22.60524864]
[1733758583018,22.60524864,226.06,225.98,22.60524864]
[1733758583249,22.60524864,226.06,225.94,7.8458]
[1733758583250,22.60524864,226.04,225.96,22.60524864]
[1733758583556,22.60524864,226.0,225.94,30.45104864]
[1733758583931,22.60524864,225.98,225.93,13.0794]
[1733758584136,6.6368,226.02,225.93,13.0794]
[1733758584137,22.60524864,225.96,225.93,13.0794]
[1733758584323,6.6368,226.02,225.88,8.0306]
[1733758584324,22.60524864,225.94,225.88,8.0306]
[1733758584519,22.60524864,225.96,225.88,30.63584864]
[1733758584831,22.60524864,225.98,225.9,22.60524864]
[1733758585019,22.60524864,225.98,225.88,8.0306]
[1733758585220,22.60524864,225.98,225.9,22.60524864]
[1733758585425,22.60524864,225.96,225.88,30.63584864]
[1733758585922,22.60524864,225.98,225.9,22.60524864]
[1733758586441,22.60524864,225.98,225.91,0.12549]
[1733758586628,22.60524864,225.94,225.88,8.0306]
[1733758586833,22.60524864,225.98,225.9,22.60524864]
[1733758587725,22.60524864,225.96,225.88,30.63584864]
[1733758588134,22.60524864,225.95,225.88,30.63584864]
[1733758588342,22.60524864,225.95,225.88,8.0306]
[1733758588526,22.60524864,225.89,225.87,12.0018]
[1733758588717,22.60524864,225.89,225.8,12.4647]
[1733758588918,22.60524864,225.89,225.72,4.99995015]
[1733758588919,22.60524864,225.81,225.68,17.2569]
[1733758589219,5.0,225.9,225.68,12.2569]
[1733758589220,22.60524864,225.74,225.68,12.2569]
[1733758589419,20.7175728,225.86,225.68,12.2569]
[1733758589629,22.60524864,225.75,225.68,12.2569]
[1733758589827,22.60524864,225.77,225.68,34.86214864]
[1733758590142,0.7175728,225.82,225.68,12.2569]
[1733758590143,22.60524864,225.75,225.68,12.2569]
[1733758590455,22.60524864,225.71,225.68,12.2569]
[1733758590664,0.7175728,225.7,225.68,12.2569]
[1733758590822,22.60524864,225.71,225.68,12.2569]
[1733758591353,22.60524864,225.71,225.66,8.2085]
[1733758591354,22.60524864,225.71,225.67,10.0]
[1733758591534,0.7175728,225.79,225.68,22.60524864]
[1733758591737,22.60524864,225.78,225.69,0.12549]
[1733758592040,22.60524864,225.74,225.67,10.0]
[1733758592232,22.60524864,225.72,225.67,10.0]
[1733758592560,22.60524864,225.7,225.67,10.0]
[1733758592919,22.60524864,225.72,225.67,10.0]
[1733758593737,22.60524864,225.68,225.67,10.0]
[1733758595338,0.7175728,225.71,225.67,10.0]
[1733758595668,22.60524864,225.68,225.67,10.0]
[1733758599052,22.60524864,225.72,225.67,10.0]
[1733758599395,22.60524864,225.68,225.67,10.0]
[1733758600450,0.7175728,225.71,225.67,10.0]
[1733758600451,22.60524864,225.7,225.67,10.0]
[1733758600651,0.7175728,225.69,225.67,10.0]
[1733758600888,22.60524864,225.72,225.67,10.0]
[1733758601084,0.7175728,225.71,225.67,10.0]
[1733758601663,22.60524864,225.76,225.67,32.60524864]
[1733758601862,22.60524864,225.72,225.67,10.0]
[1733758602093,6.6442,225.76,225.68,22.60524864]
[1733758602094,22.60524864,225.76,225.68,22.60524864]
[1733758602398,0.7175728,225.78,225.68,22.60524864]
[1733758602399,23.32282144,225.78,225.7,22.60524864]
[1733758602585,23.32282144,225.8,225.72,22.60524864]
[1733758602890,22.60524864,225.82,225.74,22.60524864]
[1733758603088,22.60524864,225.82,225.69,23.902374]
[1733758603089,22.60524864,225.84,225.77,0.12549]
[1733758603291,6.6404,225.89,225.78,22.60524864]
[1733758603292,34.86693442,225.86,225.78,22.60524864]
[1733758603451,34.86693442,225.86,225.8,22.60524864]
[1733758603452,12.26168578,225.86,225.8,22.60524864]
[1733758603775,12.26168578,225.86,225.82,35.07104864]
[1733758603957,22.60524864,225.92,225.85,0.12549]
[1733758604154,22.60524864,225.88,225.82,12.4658]
[1733758604379,22.60524864,225.9,225.82,12.4658]
[1733758604558,22.60524864,225.92,225.85,22.73073864]
[1733758604768,23.32282144,225.98,225.9,0.12549]
[1733758604968,22.60524864,225.98,225.91,22.60524864]
[1733758605207,22.60524864,225.96,225.87,22.60524864]
[1733758605488,22.60524864,225.89,225.78,22.60524864]
[1733758605686,5.13247789,225.96,225.87,22.60524864]
[1733758605991,22.60524864,225.96,225.87,22.60524864]
[1733758606505,22.60524864,225.98,225.89,22.60524864]
[1733758606650,22.60524864,225.96,225.88,0.12549]
[1733758606855,22.60524864,225.96,225.89,22.60524864]
[1733758607396,22.60524864,225.96,225.88,0.12549]
[1733758607561,22.60524864,225.94,225.87,22.60524864]
[1733758607755,22.60524864,225.92,225.84,0.12549]
[1733758607965,22.60524864,225.9,225.84,0.12549]
[1733758608287,22.60524864,225.92,225.83,22.60524864]
[1733758608459,22.60524864,225.9,225.83,22.60524864]
[1733758608659,0.7175728,225.89,225.81,22.60524864]
[1733758608850,22.60524864,225.88,225.81,22.60524864]
[1733758609296,23.32282144,225.92,225.83,22.60524864]
[1733758609808,22.60524864,225.86,225.75,0.66411688]
[1733758609954,22.60524864,225.86,225.78,22.60524864]
[1733758610156,27.28011147,225.94,225.72,22.60524864]
[1733758610157,22.60524864,225.88,225.8,22.60524864]
[1733758610355,22.60524864,225.88,225.81,0.12549]
[1733758610582,22.60524864,225.88,225.8,22.60524864]
[1733758610787,22.60524864,225.86,225.78,22.60524864]
[1733758610973,11.06192519,225.93,225.76,22.60524864]
[1733758610974,0.7175728,225.85,225.76,22.60524864]
[1733758611215,22.60524864,225.8,225.72,22.60524864]
[1733758611730,22.60524864,225.73,225.67,10.0]
[1733758611892,0.7175728,225.79,225.71,22.60524864]
[1733758612092,0.7175728,225.8,225.71,22.60524864]
[1733758612286,23.32282144,225.81,225.73,22.60524864]
[1733758612732,0.7175728,225.8,225.71,22.60524864]
[1733758612899,0.7175728,225.8,225.73,22.60524864]
[1733758613095,0.7175728,225.8,225.67,10.0]
[1733758613096,7.3605728,225.8,225.67,10.0]
[1733758613331,22.60524864,225.77,225.68,22.60524864]
[1733758613626,22.60524864,225.75,225.67,10.0]
[1733758613795,0.7175728,225.74,225.67,10.0]
[1733758614596,20.0,225.72,225.67,10.0]
[1733758614851,0.7175728,225.71,225.67,10.0]
[1733758615035,22.60524864,225.75,225.68,22.60524864]
[1733758615242,23.32282144,225.79,225.7,22.60524864]
[1733758615597,22.60524864,225.79,225.7,22.60524864]
[1733758615797,22.60524864,225.77,225.68,22.60524864]
[1733758615996,22.60524864,225.75,225.67,10.0]
[1733758616724,22.60524864,225.71,225.67,10.0]